Cogmind - Beta 10.2 @@@ ROGUE MODE // 2021.05.25 @ 16:26:33 Player: Trantor Result: Destroyed by as-15620 with Assembled Heavy Rifle Performance ------------- Evolutions (0) 0 Regions Visited (2) 400 Robots Destroyed (25) 125 Value Destroyed (496) 496 Prototype IDs (2) 40 Alien Tech Used (0) 0 Bonus (0) 0 TOTAL SCORE: 1061 Bonus ------- None Cogmind --------- Core Integrity 0/250 Matter 260/300 Energy 100/100 System Corruption 0% Temperature Cool (0) Movement Core (850) Ox16 Location -10/Mines Parts ------- > --- POWER (1) -------- (None) > --- PROPULSION (2) --- (None) > --- UTILITY (2) ------ Large Storage Unit High-capacity Storage Unit > --- WEAPON (2) ------- Light Assault Rifle > --- INVENTORY (18) --- Ion Engine Nuclear Core VTOL Module VTOL Module VTOL Module VTOL Module Small Storage Unit Large Storage Unit High-capacity Matter Pod (200) Improved Sensor Array Signal Interpreter Heavy EM Pulse Gun Heavy EM Pulse Gun Heavy EM Pulse Gun Heavy EM Pulse Gun Datajack Peak State ------------ > --- POWER ------------ Ion Engine > --- PROPULSION ------- Aluminum Leg Aluminum Leg > --- UTILITY ---------- Large Storage Unit High-capacity Storage Unit > --- WEAPON ----------- Medium Laser Light Assault Rifle > --- INVENTORY -------- Ion Engine Ion Engine VTOL Module VTOL Module VTOL Module VTOL Module Small Storage Unit Small Storage Unit High-capacity Matter Pod Improved Sensor Array Signal Interpreter Small Laser Light Assault Rifle Grenade Launcher Datajack Mining Laser [Rating: 9] Favorites ----------- Power Ion Engine Engine Ion Engine Propulsion Aluminum Leg Leg Aluminum Leg Utility Large Storage Unit Storage Large Storage Unit Weapon Medium Laser Energy Gun Medium Laser Ballistic Gun Light Assault Rifle Launcher Grenade Launcher Special Melee Weapon Datajack Build | -11 -10 -10 ------- Run | Scr Mat Min Slots Evolved . | . . . Power . | . . . Propulsion . | . . . Utility . | . . . Weapon . | . . . Parts Attached 33 | . 22 11 Power 1 | . 1 . Engine 1 | . 1 . Core . | . . . Reactor . | . . . Propulsion 8 | . 2 6 Treads . | . . . Leg 8 | . 2 6 Wheel . | . . . Hover . | . . . Flight . | . . . Utility 3 | . 3 . Device . | . . . Storage 3 | . 3 . Processor . | . . . Hackware . | . . . Protection . | . . . Artifact . | . . . Weapon 21 | . 16 5 Energy Gun 6 | . 6 . Energy Cannon . | . . . Ballistic Gun 6 | . 3 3 Ballistic Cannon . | . . . Launcher 8 | . 6 2 Special Weapon . | . . . Impact Weapon . | . . . Slashing Weapon . | . . . Piercing Weapon . | . . . Special Melee Weapon 1 | . 1 . Unidentified Prototypes . | . . . Parts Lost 9 | . 3 6 Power 1 | . . 1 Propulsion 3 | . 1 2 Utility . | . . . Weapon 5 | . 2 3 Highest Loss Streak 6 | . 2 6 Average Slot Usage (%) 96 | . 95 98 Engine 13 | . 14 12 Leg 25 | . 25 27 Storage 27 | . 27 28 Energy Gun 16 | . 17 13 Ballistic Gun 8 | . 7 14 Launcher 1 | . 2 . Naked Turns . | . . . Heaviest Build 58 | 12 58 56 Greatest Support 20 | 20 20 20 Greatest Overweight (x) 5 | . 5 2 Average Overweight (x) 2 | . 2 2 Largest Inventory Capacity 18 | 6 18 18 Average Capacity 16 | 6 16 18 Most Carried 18 | 6 18 18 Average Carried 14 | 6 14 17 Final Capacity 18 | 6 18 18 Final Carried 18 | 6 18 16 Class Distribution -------------------- 78% | Mutant 21% | Scavenger-Mutant Dominant Class ---------------- Mutant | -10/Materials Scavenger-Mutant | -10/Mines Resources | -11 -10 -10 ----------- Run | Scr Mat Min Matter Collected 938 | 200 533 205 Remotely . | . . . Salvage Created 762 | . 586 176 Parts 58 | . 48 10 Haulers Intercepted 2 | . 2 . Recyclers Shooed . | . . . Parts Field Recycled . | . . . Retrieved Matter . | . . . Parts Self-Destructed . | . . . Prevented . | . . . Kills | -11 -10 -10 ------- Run | Scr Mat Min Combat Hostiles Destroyed 17 | . 11 6 Guns 10 | . 5 5 AOE 7 | . 6 1 Classes Destroyed 9 | . 8 1 Worker 2 | . 2 . Builder 1 | . 1 . Hauler 2 | . 2 . Recycler 2 | . 2 . Operator 1 | . 1 . Watcher 2 | . 2 . Swarmer 6 | . 6 . Grunt 9 | . 5 4 Assembled 2 | . . 2 Best Kill Streak 6 | . 6 2 Combat Bots Only 5 | . 5 2 Max Kills in Single Turn 3 | . 3 1 Gunslinging . | . . . Exploded 3 | . 3 1 Melee . | . . . Uniques/NPCs Destroyed . | . . . Combat | -11 -10 -10 -------- Run | Scr Mat Min Damage Taken 1224 | . 541 683 Core 260 | . 138 122 Absorbed by Shields . | . . . Core Remaining (%) 100 | 100 . . Volleys Fired 86 | . 58 28 Largest 2 | . 2 2 Hottest 100 | . 100 70 Shots Fired 149 | . 97 52 Gun 131 | . 81 50 Cannon . | . . . Launcher 18 | . 16 2 Special . | . . . Kinetic 56 | . 20 36 Thermal 57 | . 43 14 Explosive 18 | . 16 2 Electromagnetic 18 | . 18 . Robot Hit Streak 10 | . 10 8 Robot Miss Streak 4 | . 3 4 Penetration Max . | . . . Secondary Targets 1 | . . 1 Max Gunslinging Chain 1 | . . 1 Shots Hit Robots 85 | . 58 27 Core Hits 46 | . 29 17 Critical Hits 3 | . 1 2 Critical Kills 1 | . 1 . Critical Parts Destroyed 2 | . . 2 Melee Attacks 3 | . 3 . Impact . | . . . Slashing . | . . . Piercing . | . . . Sneak Attacks 3 | . 3 . Combat Hostiles . | . . . Follow-up Attacks . | . . . Damage Inflicted 1646 | . 1234 412 Guns 934 | . 637 297 Cannons . | . . . Explosions 712 | . 597 115 Melee . | . . . Ramming . | . . . Kinetic 228 | . 76 152 Thermal 528 | . 383 145 Explosive 684 | . 569 115 Electromagnetic 206 | . 206 . Impact . | . . . Slashing . | . . . Piercing . | . . . Highest Corruption . | . . . Average Corruption . | . . . Corruption Purged . | . . . Overload Shots . | . . . Overflow Damage 77 | . 74 3 Projectiles . | . . . Explosions 77 | . 74 3 Melee . | . . . Knockbacks . | . . . Impact . | . . . Kinetic . | . . . Secondary . | . . . Self-Inflicted Damage 180 | . 171 9 Shots 5 | . 4 1 Rammed . | . . . Targets Rammed . | . . . Kicked . | . . . Crushed . | . . . Highest Temperature 366 | . 366 93 Average Temperature 93 | . 109 35 Received Heat Transfer 246 | . 153 93 Effects 4 | . 4 . Energy Bleed 2 | . 2 . Interference 1 | . 1 . Matter Decay 1 | . 1 . Siege Activations . | . . . Robots Corrupted . | . . . Combat Hostiles . | . . . Parts Fried . | . . . Impact Corruptions . | . . . Robots Melted . | . . . Combat Hostiles . | . . . Parts Melted 2 | . 2 . Heat Transferred 1443 | . 1036 407 Parts Sabotaged . | . . . Parts Stolen . | . . . Parts Stripped . | . . . Power Chain Reactions 1 | . 1 . Missiles Intercepted . | . . . Alert | -11 -10 -10 ------- Run | Scr Mat Min Peak Influence 212 | . 212 65 Initial . | . . . Average 70 | . 76 48 Maximum Alert Level 1 | . 1 . Low Security (%) 95 | 100 94 100 Level 1 4 | . 5 . Level 2 . | . . . Level 3 . | . . . Level 4 . | . . . Level 5 . | . . . High Security . | . . . Max Security . | . . . Squads Dispatched 3 | . 2 1 Investigation 2 | . 1 1 Extermination . | . . . Reinforcement 1 | . 1 . Assault . | . . . Garrison . | . . . Intercept . | . . . Construction Impeded . | . . . Haulers Reinforced . | . . . Stealth | -11 -10 -10 --------- Run | Scr Mat Min Distress Signals 1 | . 1 . Communications Jammed . | . . . Distress Signals . | . . . Times Spotted 34 | . 25 9 Peak Tracking Total 3 | . 3 2 Tactical Retreats 6 | . 5 1 Traps | -11 -10 -10 ------- Run | Scr Mat Min Traps Triggered 1 | . 1 . Indirectly . | . . . Trap Hack Attempts . | . . . Triggered . | . . . Disarmed . | . . . Reprogrammed . | . . . Reused . | . . . Traps Extracted . | . . . Installed . | . . . Triggered . | . . . Machines | -11 -10 -10 ---------- Run | Scr Mat Min Machines Disabled 2 | . 2 . Max in Single Turn 2 | . 2 . Machines Sabotaged . | . . . Garrisons Compromised . | . . . Overloaded Fab Kills . | . . . Fab Network Shutdowns . | . . . Hacking | -11 -10 -10 --------- Run | Scr Mat Min Machines Accessed 8 | . 7 1 Terminals 6 | . 6 . Fabricators . | . . . Repair Stations 1 | . 1 . Recycling Units . | . . . Scanalyzers . | . . . Garrison Access . | . . . Total Hacks 32 | . 31 1 Successful 19 | . 18 1 Failed 13 | . 13 . Catastrophic . | . . . Database Lockouts . | . . . Manual 21 | . 21 . Terminals 28 | . 28 . Fabricators . | . . . Repair Stations 3 | . 3 . Recycling Units . | . . . Scanalyzers . | . . . Garrison Access . | . . . Terminal Hacks 9 | . 8 1 Robot Analysis 3 | . 3 . Prototype ID Bank 1 | . 1 . Open Door 1 | . . 1 Emergency Access Points 1 | . 1 . Unreport Threat 1 | . 1 . Locate Traps 1 | . 1 . Hauler Manifests 1 | . 1 . Fabricator Hacks . | . . . Repair Station Hacks 2 | . 2 . Scan Component 1 | . 1 . Repair 1 | . 1 . Recycling Unit Hacks . | . . . Scanalyzer . | . . . Garrison Access Hacks . | . . . Unauthorized Hacks 8 | . 8 . Terminals 8 | . 8 . Track 2 | . 2 . Assimilate 1 | . 1 . Botnet 5 | . 5 . Fabricators . | . . . Repair Stations . | . . . Recycling Units . | . . . Scanalyzers . | . . . Garrison Access . | . . . Data Cores Recovered . | . . . Used . | . . . Hacking Detections 7 | . 7 . Full Trace Events . | . . . Feedback Events . | . . . Feedback Blocked . | . . . Robot Schematics Acquired . | . . . Robots Built . | . . . Matter . | . . . Time . | . . . Total Robot Build Rating . | . . . Part Schematics Acquired . | . . . Parts Built . | . . . Matter . | . . . Time . | . . . Total Part Build Rating . | . . . Parts Repaired 1 | . 1 . Time 13 | . 13 . Parts Recycled . | . . . Recycled Matter . | . . . Retrieved Matter . | . . . Retrieved Components . | . . . Parts Scanalyzed . | . . . Part Schematics Acquired . | . . . Parts Damaged . | . . . Bothacking | -11 -10 -10 ------------ Run | Scr Mat Min Used RIF Installer . | . . . Robots Hacked 2 | . 2 . Non-combat 2 | . 2 . Combat . | . . . Robot Hacks Applied 3 | . 3 . parse_system 2 | . 2 . no_distress 1 | . 1 . Relay Couplers Released . | . . . Robots Rewired . | . . . Allies Hacked . | . . . Hacks Repelled . | . . . Allies | -11 -10 -10 -------- Run | Scr Mat Min Total Allies . | . . . Largest Group . | . . . Highest-Rated Group . | . . . Highest-Rated Ally . | . . . Total Orders . | . . . Ally Attacks . | . . . Total Damage . | . . . Kills . | . . . Allies Corrupted . | . . . Allies Melted . | . . . Intel | -11 -10 -10 ------- Run | Scr Mat Min Robot Analysis Total 3 | . 3 . Derelict Logs Recovered . | . . . Drone Launches . | . . . Drone Recoveries . | . . . Exploration | -11 -10 -10 ------------- Run | Scr Mat Min Turns Passed 2638 | 2 2032 604 Spaces Moved 1273 | 2 987 284 Core . | . . . Treads . | . . . Legs 1273 | 2 987 284 Wheels . | . . . Hover . | . . . Flight . | . . . Fastest Speed 120 | 120 120 180 Average Speed 180 | 120 180 180 Slowest Speed 270 | 120 270 180 Overloaded Moves . | . . . Propulsion Burnouts . | . . . Robots Hopped . | . . . Cave-ins Triggered . | . . . Exploration Rate (%) 51 | 2 99 54 Regions Visited 2 Branch Regions 1 Pre-discovered Areas . | . . . Known Exits Taken . | . . . Unknown Exits Taken 2 | 1 1 . Scrap Searched . | . . . Spaces Dug . | . . . Terrain Destroyed 197 | . 183 14 Melee . | . . . Projectile . | . . . AOE 197 | . 183 14 Terrain Rammed . | . . . Walls Destroyed . | . . . Machines Disabled . | . . . Actions | -11 -10 -10 --------- Run | Scr Mat Min Total 1473 | 1 1138 334 Wait 41 | . 38 3 Move 1271 | 1 986 284 Hop . | . . . Pick Up 21 | . 20 1 Fast Attach 4 | . 4 . Attach 4 | . 2 2 Detach . | . . . Swap 25 | . 16 9 Drop 18 | . 11 7 Fire 86 | . 58 28 Melee 3 | . 3 . Ram . | . . . Kick . | . . . Crush . | . . . Escape Stasis . | . . . Rewire . | . . . Trap . | . . . Miscellaneous . | . . . Route ------- -11/Scrapyard -10/Materials (discovered 5 exits: [*Mat x3] / *Min x2) -10/Mines (discovered 2 exits: [*Mat x2]) History --------- Turn | Location | Event 1 | -11/Scrapyard | Discovered new exit (range 1) 3 | -11/Scrapyard | Entered Materials 312 | -10/Materials | Build established: Mutant 333 | -10/Materials | Discovered new exit (range 9) 571 | -10/Materials | Discovered new exit (range 7) 826 | -10/Materials | Discovered new exit (range 7) 896 | -10/Materials | Discovered new exit (range 7) 1149 | -10/Materials | Repaired Med. Laser 1159 | -10/Materials | Discovered new exit (range 3) 1428 | -10/Materials | Core integrity fell below 50% 2035 | -10/Materials | Entered Mines 2133 | -10/Mines | Discovered new exit (range 8) 2227 | -10/Mines | Met a Derelict shopkeep closing up shop 2337 | -10/Mines | Build established: Scavenger-Mutant 2353 | -10/Mines | Discovered new exit (range 7) 2566 | -10/Mines | Assembled infested the area 2620 | -10/Mines | Core integrity fell below 20% 2639 | -10/Mines | Destroyed by as-15620 with Assembled Heavy Rifle Last Messages --------------- 02513_ Dropped Aluminum Leg. 02514_ Acquired 16 matter. 02521_ G-47 Trooper destroyed. 02525_ K-01 Serf collects debris. 02537_ Acquired 2 matter. 02540_ Dropped Aluminum Leg. 02542_ Acquired 10 matter. 02566_ ALERT: Infestation in the mines, dispatching Demolisher response squad. 02587_ Ion Engine destroyed. 02600_ Grenade Launcher destroyed. 02606_ Med. Laser destroyed. 02608_ as-43728 suffers critical hit. 02608_ Destroyed Asb. Hover Unit. 02611_ as-43728 destroyed. 02618_ Aluminum Leg destroyed. 02624_ as-47389 destroyed. 02624_ Switching to secondary target: as-91283. 02636_ Aluminum Leg destroyed. 02637_ Lgt. Assault Rifle destroyed. Map ----- +----------------------------------------------------+ | | | | | | | | | ?????????????????????????????????? | | ?????????????????????????????????? | | ?????????????????????????????????? | | ?????????????????????????????????? | | ?????????????????????????????????? | | ?????????????????????????????????? | | ?????????????????????????????????? | | ?????????????????????????????????? | | ?????????????????????????????????? | | ?????????????????????????????????? | | ?????????????????????????????????? | | ???????????????????????????#####?? | | ???????????????????????????# #?? | | ???????????????????######### ##? | | ???????????????????? #? | | ???????????????????????? #? | | ?????????????????????????? a #?? | | #### ?????????????????????##a #?? | | ?????????????????????## #?? | | ?????????????????????## ##?? | | ####???????????????##### % ##??? | | #####??????????## @ ##???? | | ??????????# ##????? | | ??????????# ##?????? | | ??????????# #??????? | | ???????????# #??????? | | #???????????????## #??????? | | #????????????????# ##?????? | | ##????????????????# #?????? | | #?????????????????# #?????? | | #?????????????????## #?????? | | #??????????????????## ##?????? | | #???????????????????# ####??????? | | ##??????????????????# #?????????? | | #??????????????????# #?????????? | | #???????????#####??# #?????????? | | ############# ##?# #?????????? | | [=%! ### #?????????? | | ##### ####### =%* #?????????? | | ????# #?????## ! #?????????? | | ???? #??????# # #####?????????? | | ???####??????# ## #?????????????? | | ?????????????# #####?????????????? | | ?????????????# #?????????????????? | | ????????????? #?????????????????? | | ????????????? ?????????????????? | +----------------------------------------------------+ Best States ------------- Heat Dissipation 25 Energy Generation 10 Energy Capacity 250 Matter Stores 300 Matter Capacity 300 Sight Range 16 Terrain Scan Density 10 Evasion (%) 40 Item Schematics ----------------- None Robot Schematics ------------------ None Fabricated ------------ Nothing Alien Tech Used ----------------- None Achievements -------------- None Challenges ------------ None Game ------ Seed ZioniteSigixMeganuke Manual? 0 Play Time 00:21:17 Cumulative 138.1 hours Start 2021.05.25 @ 15:56:25 End 2021.05.25 @ 16:26:33 Sessions 3 Manual Loads 0 Difficulty Rogue Special Mode None Game No. 85 Rogue 60 Adventurer 25 Explorer 0 Win Type - Total 0 Types 0/0/0/0/0/0/0/0/0 Lore% 46 Gallery% 47 Achievement% 38 Wizard Run 0 Options --------- ASCII 0 Keyboard 1 Movement Vi Keybinds 1 Fullscreen 2 Font 18/SmallcapsGlow Map View 76x50 Tactical HUD 1 Map Filters NONE Filters NONE Steam 1 RUN: f1b10665-4953-485f-b910-800296a939f9